[Event "GrandPrix_29.05"]
[Site "Chess.com"]
[Date "2020.05.29"]
[Round "2"]
[White "zuagroasta"]
[Black "BakaPG"]
[Result "0-1"]
[WhiteElo "1386"]
[BlackElo "2125"]
[TimeControl "600+2"]
[EndTime "9:55:48 PDT"]
[Termination "BakaPG won on time"]

1. d4 {[%clk 0:10:01.7]} 1... d5 {[%clk 0:09:57.7]} 2. Bg5 {[%clk 0:09:58.4]}
2... h6 {[%clk 0:09:41.7]} 3. Bh4 {[%clk 0:09:56]} 3... c6 {[%clk 0:09:40.6]} 4.
e3 {[%clk 0:09:49.2]} 4... Qb6 {[%clk 0:09:38.2]} 5. Qc1 {[%clk 0:09:45.8]} 5...
e5 {[%clk 0:09:36.2]} 6. Nf3 {[%clk 0:09:44.2]} 6... e4 {[%clk 0:09:30.8]} 7.
Nfd2 {[%clk 0:09:44.3]} 7... Be6 {[%clk 0:09:26.7]} 8. c4 {[%clk 0:09:39.5]}
8... Nd7 {[%clk 0:09:26.8]} 9. Nc3 {[%clk 0:09:29.6]} 9... Ngf6 {[%clk 0:09:24]}
10. Be2 {[%clk 0:08:08.5]} 10... Be7 {[%clk 0:09:14]} 11. O-O {[%clk 0:07:36.6]}
11... O-O {[%clk 0:09:09.8]} 12. b3 {[%clk 0:07:36.3]} 12... Rac8 {[%clk
0:09:01.9]} 13. f3 {[%clk 0:07:32.6]} 13... exf3 {[%clk 0:09:01]} 14. Bxf3
{[%clk 0:07:32.6]} 14... Rfe8 {[%clk 0:08:59.3]} 15. c5 {[%clk 0:07:07.2]} 15...
Qd8 {[%clk 0:08:54.7]} 16. Qc2 {[%clk 0:07:02]} 16... Nf8 {[%clk 0:08:42.7]} 17.
b4 {[%clk 0:06:26.7]} 17... Ng4 {[%clk 0:08:03.9]} 18. Bxe7 {[%clk 0:06:18.1]}
18... Qxe7 {[%clk 0:07:53.8]} 19. Rae1 {[%clk 0:05:56.7]} 19... Qh4 {[%clk
0:07:10.6]} 20. h3 {[%clk 0:05:53.8]} 20... Nf6 {[%clk 0:07:08.9]} 21. Ne2
{[%clk 0:05:34.4]} 21... N8h7 {[%clk 0:06:55]} 22. Nf4 {[%clk 0:05:31.8]} 22...
Ng5 {[%clk 0:06:51.6]} 23. Kh2 {[%clk 0:05:24.8]} 23... Nge4 {[%clk 0:04:42.2]}
24. Nxe4 {[%clk 0:04:10.6]} 24... Nxe4 {[%clk 0:04:21.1]} 25. Bxe4 {[%clk
0:04:02.6]} 25... dxe4 {[%clk 0:04:20.5]} 26. Ne2 {[%clk 0:03:40.4]} 26... g6
{[%clk 0:03:52.8]} 27. Rc1 {[%clk 0:02:42.3]} 27... Qe7 {[%clk 0:03:20.8]} 28.
Qxe4 {[%clk 0:01:23.4]} 28... Bxa2 {[%clk 0:03:15.1]} 29. Qxe7 {[%clk
0:01:18.9]} 29... Rxe7 {[%clk 0:03:15.4]} 30. Nc3 {[%clk 0:01:11.5]} 30... Bc4
{[%clk 0:03:06.8]} 31. Rf3 {[%clk 0:01:07]} 31... b5 {[%clk 0:02:45]} 32. e4
{[%clk 0:01:01.7]} 32... Rd8 {[%clk 0:02:43.3]} 33. Rd1 {[%clk 0:01:00.8]} 33...
a5 {[%clk 0:02:33]} 34. bxa5 {[%clk 0:00:57.6]} 34... b4 {[%clk 0:02:33.8]} 35.
Na4 {[%clk 0:00:52.4]} 35... Be2 {[%clk 0:02:32.1]} 36. Rfd3 {[%clk 0:00:39]}
36... Bxd1 {[%clk 0:02:27.9]} 37. Rxd1 {[%clk 0:00:38.8]} 37... Rxe4 {[%clk
0:02:21.4]} 38. a6 {[%clk 0:00:36.3]} 38... Re7 {[%clk 0:02:18.3]} 39. Nb6
{[%clk 0:00:21.5]} 39... Ra7 {[%clk 0:02:17.1]} 40. Ra1 {[%clk 0:00:21.1]} 40...
b3 {[%clk 0:02:16.1]} 41. d5 {[%clk 0:00:17]} 41... cxd5 {[%clk 0:02:13.3]} 42.
c6 {[%clk 0:00:17.2]} 42... d4 {[%clk 0:01:58]} 43. Nc4 {[%clk 0:00:05]} 43...
d3 {[%clk 0:01:54.8]} 44. Rb1 {[%clk 0:00:04.8]} 44... Rxa6 {[%clk 0:01:49.7]}
45. c7 {[%clk 0:00:04.1]} 45... Rc8 {[%clk 0:01:50.4]} 46. Rxb3 {[%clk
0:00:03.4]} 46... Rxc7 {[%clk 0:01:49.9]} 0-1

[Event "GrandPrix_29.05"]
[Site "Chess.com"]
[Date "2020.05.29"]
[Round "2"]
[White "Yaroslav_Remizov"]
[Black "DinaBelenkaya"]
[Result "0-1"]
[WhiteElo "2247"]
[BlackElo "1575"]
[TimeControl "600+2"]
[EndTime "9:55:49 PDT"]
[Termination "DinaBelenkaya won on time"]

1. e4 {[%clk 0:10:01.9]} 1... d5 {[%clk 0:09:57.9]} 2. Nc3 {[%clk 0:09:55.7]}
2... dxe4 {[%clk 0:09:23.9]} 3. Nxe4 {[%clk 0:09:57.6]} 3... Nf6 {[%clk
0:09:25.6]} 4. Ng3 {[%clk 0:09:53.1]} 4... h5 {[%clk 0:09:23.4]} 5. Bc4 {[%clk
0:09:46.2]} 5... h4 {[%clk 0:09:01.3]} 6. N3e2 {[%clk 0:09:45.6]} 6... h3 {[%clk
0:08:37.3]} 7. Nxh3 {[%clk 0:09:36.8]} 7... Bxh3 {[%clk 0:08:26.5]} 8. gxh3
{[%clk 0:09:38.7]} 8... Rxh3 {[%clk 0:08:25.5]} 9. d3 {[%clk 0:09:39.1]} 9...
Nc6 {[%clk 0:08:00.7]} 10. Bf4 {[%clk 0:09:16.1]} 10... e6 {[%clk 0:05:20.2]}
11. Qd2 {[%clk 0:08:28.5]} 11... Nd4 {[%clk 0:04:33.4]} 12. Nxd4 {[%clk
0:04:12.6]} 12... Qxd4 {[%clk 0:04:33.9]} 13. O-O-O {[%clk 0:03:42.4]} 13... Bd6
{[%clk 0:04:05.5]} 14. Be3 {[%clk 0:03:28.7]} 14... Qh4 {[%clk 0:03:58.3]} 15.
Qa5 {[%clk 0:03:09.6]} 15... c6 {[%clk 0:03:00.7]} 16. Rhg1 {[%clk 0:03:08.5]}
16... Ng4 {[%clk 0:02:22.1]} 17. Kb1 {[%clk 0:01:55.3]} 17... Rxh2 {[%clk
0:02:23]} 18. Qc3 {[%clk 0:01:28]} 18... g6 {[%clk 0:01:43.4]} 19. Qb3 {[%clk
0:01:12.1]} 19... Nxe3 {[%clk 0:00:26.1]} 20. Qxb7 {[%clk 0:01:07]} 20... Nxd1
{[%clk 0:00:25.1]} 21. Qxa8+ {[%clk 0:01:05.4]} 21... Ke7 {[%clk 0:00:26.8]} 22.
Qxa7+ {[%clk 0:00:53.4]} 22... Kf6 {[%clk 0:00:26.7]} 23. Rxd1 {[%clk
0:00:47.7]} 23... Rh1 {[%clk 0:00:28.1]} 24. Rc1 {[%clk 0:00:07.1]} 24... Bf4
{[%clk 0:00:10.8]} 25. Qd4+ {[%clk 0:00:07.7]} 25... e5 {[%clk 0:00:12.2]} 0-1

[Event "GrandPrix_29.05"]
[Site "Chess.com"]
[Date "2020.05.29"]
[Round "2"]
[White "Koksik_13"]
[Black "Doukis"]
[Result "0-1"]
[WhiteElo "2023"]
[BlackElo "2257"]
[TimeControl "600+2"]
[EndTime "9:55:49 PDT"]
[Termination "Doukis won by resignation"]

1. d4 {[%clk 0:10:01.9]} 1... d5 {[%clk 0:09:59.4]} 2. Nc3 {[%clk 0:10:02.8]}
2... Nf6 {[%clk 0:09:58.8]} 3. Bf4 {[%clk 0:10:04.3]} 3... e6 {[%clk 0:09:59.9]}
4. Nb5 {[%clk 0:10:05]} 4... Na6 {[%clk 0:09:59.2]} 5. e3 {[%clk 0:10:05.7]}
5... Be7 {[%clk 0:09:57.9]} 6. h3 {[%clk 0:10:04.1]} 6... O-O {[%clk 0:09:55.4]}
7. Nf3 {[%clk 0:10:04.3]} 7... c6 {[%clk 0:09:40.7]} 8. Nc3 {[%clk 0:10:04.7]}
8... c5 {[%clk 0:09:41.7]} 9. Bxa6 {[%clk 0:10:01.5]} 9... bxa6 {[%clk
0:09:41.1]} 10. O-O {[%clk 0:10:03.4]} 10... Bd7 {[%clk 0:09:15.6]} 11. Ne5
{[%clk 0:10:04.1]} 11... Be8 {[%clk 0:09:16.6]} 12. Rb1 {[%clk 0:10:00.6]} 12...
a5 {[%clk 0:08:46.5]} 13. Qf3 {[%clk 0:09:50.1]} 13... Rc8 {[%clk 0:08:28.5]}
14. Rfd1 {[%clk 0:09:40.7]} 14... cxd4 {[%clk 0:07:52.5]} 15. exd4 {[%clk
0:09:42.6]} 15... Nd7 {[%clk 0:07:30.8]} 16. Qg3 {[%clk 0:09:38]} 16... Nxe5
{[%clk 0:07:27.9]} 17. Bxe5 {[%clk 0:09:39.9]} 17... f6 {[%clk 0:07:18.4]} 18.
Bf4 {[%clk 0:09:40.6]} 18... Bg6 {[%clk 0:06:54.7]} 19. Rbc1 {[%clk 0:09:36.8]}
19... Qb6 {[%clk 0:06:39.8]} 20. Na4 {[%clk 0:09:36.8]} 20... Qb4 {[%clk
0:06:09.3]} 21. b3 {[%clk 0:09:00.6]} 21... Bxc2 {[%clk 0:05:43]} 22. Re1 {[%clk
0:09:00.1]} 22... Bf5 {[%clk 0:05:38.4]} 23. Rcd1 {[%clk 0:08:46.6]} 23... Rc6
{[%clk 0:05:21.7]} 24. h4 {[%clk 0:08:37.2]} 24... Be4 {[%clk 0:04:32]} 25. h5
{[%clk 0:08:30.7]} 25... Rfc8 {[%clk 0:04:26.5]} 26. Kh2 {[%clk 0:08:25.2]}
26... Kf7 {[%clk 0:04:15.6]} 27. f3 {[%clk 0:08:22.5]} 27... Bc2 {[%clk
0:04:12.9]} 28. Rc1 {[%clk 0:08:21.8]} 28... Bf5 {[%clk 0:04:13.1]} 29. Rcd1
{[%clk 0:08:02.5]} 29... Rc2 {[%clk 0:04:05.7]} 30. Nc5 {[%clk 0:05:49]} 30...
Bxc5 {[%clk 0:03:54.8]} 31. dxc5 {[%clk 0:05:50.9]} 31... Qxc5 {[%clk
0:03:56.3]} 32. h6 {[%clk 0:05:39.1]} 32... g5 {[%clk 0:03:46.3]} 33. Rc1 {[%clk
0:04:20.9]} 33... gxf4 {[%clk 0:02:27.4]} 34. Qg7+ {[%clk 0:04:10.9]} 34... Ke8
{[%clk 0:02:28.5]} 35. Rxc2 {[%clk 0:03:59.9]} 35... Qxc2 {[%clk 0:02:22.8]} 36.
Qxf6 {[%clk 0:04:01]} 36... Kd7 {[%clk 0:02:14.6]} 37. Qg7+ {[%clk 0:02:37.1]}
37... Kd6 {[%clk 0:01:57.6]} 38. Qe5+ {[%clk 0:02:31]} 38... Kc6 {[%clk
0:01:58.4]} 39. Qg7 {[%clk 0:02:10.1]} 39... Rc7 {[%clk 0:01:49.5]} 40. Qg8
{[%clk 0:02:09.7]} 40... Kb7 {[%clk 0:01:47.7]} 41. a3 {[%clk 0:01:48]} 41...
Qf2 {[%clk 0:01:39.1]} 42. Rd1 {[%clk 0:01:16.6]} 42... Qg3+ {[%clk 0:01:12.3]}
43. Qxg3 {[%clk 0:01:16.6]} 43... fxg3+ {[%clk 0:01:14.2]} 44. Kxg3 {[%clk
0:01:18.5]} 44... Rc3 {[%clk 0:01:13.7]} 45. b4 {[%clk 0:01:14.8]} 45... a4
{[%clk 0:01:12.7]} 46. Ra1 {[%clk 0:01:15.2]} 46... d4 {[%clk 0:01:13]} 47. Kf4
{[%clk 0:01:16.3]} 47... d3 {[%clk 0:01:13.7]} 48. g4 {[%clk 0:01:17.5]} 48...
Bg6 {[%clk 0:01:13.7]} 49. Ke3 {[%clk 0:01:12.1]} 49... Rc2 {[%clk 0:01:11.2]}
50. f4 {[%clk 0:01:13.2]} 50... Re2+ {[%clk 0:01:10.3]} 51. Kf3 {[%clk
0:01:14.3]} 51... Be4+ {[%clk 0:01:07.3]} 52. Kg3 {[%clk 0:01:14.5]} 52... d2
{[%clk 0:01:08.3]} 53. Rd1 {[%clk 0:01:13.7]} 53... Bc2 {[%clk 0:01:08.6]} 0-1

[Event "GrandPrix_29.05"]
[Site "Chess.com"]
[Date "2020.05.29"]
[Round "2"]
[White "Mikhail_Golubev"]
[Black "Olga_Girya"]
[Result "0-1"]
[WhiteElo "2145"]
[BlackElo "2242"]
[TimeControl "600+2"]
[EndTime "9:55:53 PDT"]
[Termination "Olga_Girya won by resignation"]

1. e4 {[%clk 0:10:01.9]} 1... c6 {[%clk 0:09:11.2]} 2. d4 {[%clk 0:10:01.2]}
2... d5 {[%clk 0:09:03.2]} 3. Nc3 {[%clk 0:10:01.2]} 3... dxe4 {[%clk 0:08:55]}
4. Nxe4 {[%clk 0:10:01.9]} 4... Nf6 {[%clk 0:08:52.6]} 5. Nxf6+ {[%clk
0:10:02.1]} 5... exf6 {[%clk 0:08:54]} 6. c3 {[%clk 0:10:00.1]} 6... Bd6 {[%clk
0:08:54.6]} 7. Bd3 {[%clk 0:09:58.2]} 7... O-O {[%clk 0:08:54.3]} 8. Qc2 {[%clk
0:09:54.8]} 8... Re8+ {[%clk 0:08:54.8]} 9. Ne2 {[%clk 0:09:55.5]} 9... h5
{[%clk 0:08:55]} 10. O-O {[%clk 0:09:42.3]} 10... h4 {[%clk 0:08:53.5]} 11. h3
{[%clk 0:09:14.8]} 11... Nd7 {[%clk 0:08:53.4]} 12. c4 {[%clk 0:08:06.3]} 12...
Nf8 {[%clk 0:08:50]} 13. Be3 {[%clk 0:07:36.2]} 13... Bc7 {[%clk 0:08:26.3]} 14.
Rfe1 {[%clk 0:05:51.8]} 14... Ne6 {[%clk 0:07:20.8]} 15. d5 {[%clk 0:03:17.3]}
15... cxd5 {[%clk 0:06:46.2]} 16. cxd5 {[%clk 0:03:00.9]} 16... Qxd5 {[%clk
0:06:46.2]} 17. Nf4 {[%clk 0:02:52.7]} 17... Bxf4 {[%clk 0:03:36.3]} 18. Bxf4
{[%clk 0:02:46]} 18... Bd7 {[%clk 0:03:37]} 19. Bh7+ {[%clk 0:02:20.9]} 19...
Kh8 {[%clk 0:03:32.1]} 20. Be4 {[%clk 0:02:20.1]} 20... Qc5 {[%clk 0:03:25.3]}
21. Qd1 {[%clk 0:01:05.7]} 21... Nxf4 {[%clk 0:02:53]} 22. Qxd7 {[%clk
0:01:03.9]} 22... Re7 {[%clk 0:02:50.4]} 23. Qg4 {[%clk 0:00:50.7]} 23... Qg5
{[%clk 0:02:48]} 24. Bf3 {[%clk 0:00:21.1]} 24... Qxg4 {[%clk 0:02:38.2]} 25.
hxg4 {[%clk 0:00:21.4]} 25... Rae8 {[%clk 0:02:32.4]} 26. Rxe7 {[%clk
0:00:20.2]} 26... Rxe7 {[%clk 0:02:34.3]} 27. Rd1 {[%clk 0:00:21]} 27... g6
{[%clk 0:02:15.7]} 28. Kf1 {[%clk 0:00:14.4]} 28... Kg7 {[%clk 0:02:15.9]} 29.
Rd4 {[%clk 0:00:11.1]} 29... Ne6 {[%clk 0:02:06.8]} 30. Rb4 {[%clk 0:00:09.4]}
30... b6 {[%clk 0:02:07.1]} 31. Bd5 {[%clk 0:00:07.3]} 31... Nc5 {[%clk
0:02:02]} 32. Rd4 {[%clk 0:00:05.8]} 32... Rd7 {[%clk 0:01:52.7]} 33. Rd1 {[%clk
0:00:04.1]} 33... Ne6 {[%clk 0:01:51.3]} 34. Bb3 {[%clk 0:00:02.4]} 34... Rxd1+
{[%clk 0:01:46.2]} 35. Bxd1 {[%clk 0:00:03.3]} 35... Nd4 {[%clk 0:01:46.2]} 36.
Ke1 {[%clk 0:00:04]} 36... f5 {[%clk 0:01:43.4]} 37. Kd2 {[%clk 0:00:04.7]}
37... fxg4 {[%clk 0:01:36.6]} 38. Bxg4 {[%clk 0:00:05.7]} 38... f5 {[%clk
0:01:37]} 39. Bd1 {[%clk 0:00:06.3]} 39... Kf6 {[%clk 0:01:38.2]} 40. Kc3 {[%clk
0:00:06.7]} 40... Ke5 {[%clk 0:01:39]} 41. Kc4 {[%clk 0:00:07.7]} 41... g5
{[%clk 0:01:35.3]} 42. b4 {[%clk 0:00:08.1]} 42... g4 {[%clk 0:01:34.5]} 43. a4
{[%clk 0:00:07.3]} 43... h3 {[%clk 0:01:32.3]} 44. gxh3 {[%clk 0:00:06.9]} 44...
gxh3 {[%clk 0:01:33.5]} 0-1

[Event "GrandPrix_29.05"]
[Site "Chess.com"]
[Date "2020.05.29"]
[Round "2"]
[White "DrVelja"]
[Black "tsvet2005"]
[Result "0-1"]
[WhiteElo "2142"]
[BlackElo "2127"]
[TimeControl "600+2"]
[EndTime "9:55:56 PDT"]
[Termination "tsvet2005 won by resignation"]

1. e4 {[%clk 0:09:37.6]} 1... c5 {[%clk 0:10:00.7]} 2. Nf3 {[%clk 0:09:37.3]}
2... d6 {[%clk 0:10:02.1]} 3. d4 {[%clk 0:09:37.9]} 3... cxd4 {[%clk 0:10:04]}
4. Nxd4 {[%clk 0:09:39.6]} 4... Nf6 {[%clk 0:10:05.5]} 5. Nc3 {[%clk 0:09:40.5]}
5... a6 {[%clk 0:10:06.4]} 6. Be2 {[%clk 0:09:39.6]} 6... e5 {[%clk 0:10:07.1]}
7. Nf3 {[%clk 0:09:41]} 7... Be7 {[%clk 0:10:07.4]} 8. Bg5 {[%clk 0:09:41.5]}
8... Be6 {[%clk 0:10:01.8]} 9. Bxf6 {[%clk 0:09:42]} 9... Bxf6 {[%clk
0:10:03.7]} 10. Qd2 {[%clk 0:09:42.3]} 10... O-O {[%clk 0:09:55.2]} 11. Nd5
{[%clk 0:09:36.7]} 11... Nd7 {[%clk 0:09:38.2]} 12. Rd1 {[%clk 0:08:08.6]} 12...
Rc8 {[%clk 0:08:53.4]} 13. c3 {[%clk 0:07:53.3]} 13... Nc5 {[%clk 0:08:45]} 14.
Qe3 {[%clk 0:07:50.4]} 14... Na4 {[%clk 0:08:18]} 15. Nxf6+ {[%clk 0:06:42.2]}
15... Qxf6 {[%clk 0:08:19.9]} 16. Rxd6 {[%clk 0:06:41.9]} 16... Nxb2 {[%clk
0:08:06.6]} 17. O-O {[%clk 0:06:37.8]} 17... Qe7 {[%clk 0:07:54]} 18. Rd2 {[%clk
0:05:38.3]} 18... Na4 {[%clk 0:07:26]} 19. Nxe5 {[%clk 0:04:41.2]} 19... Nxc3
{[%clk 0:07:20.2]} 20. f4 {[%clk 0:03:35]} 20... Bxa2 {[%clk 0:06:39.9]} 21. Bg4
{[%clk 0:03:15.2]} 21... Rc7 {[%clk 0:05:28]} 22. Rc1 {[%clk 0:02:34.7]} 22...
Qc5 {[%clk 0:04:14.8]} 23. Qxc5 {[%clk 0:02:20.8]} 23... Rxc5 {[%clk 0:04:16.7]}
24. Rdc2 {[%clk 0:02:05.2]} 24... f5 {[%clk 0:03:59.6]} 25. Bxf5 {[%clk
0:01:27.2]} 25... Ne2+ {[%clk 0:03:41.3]} 26. Kf2 {[%clk 0:01:09.4]} 26... Nxc1
{[%clk 0:03:06.5]} 27. Rxc5 {[%clk 0:01:09]} 27... g6 {[%clk 0:03:07.2]} 28.
Rxc1 {[%clk 0:00:09.7]} 28... gxf5 {[%clk 0:03:06.7]} 29. exf5 {[%clk
0:00:11.3]} 29... Rxf5 {[%clk 0:03:08.1]} 30. Ke3 {[%clk 0:00:11.8]} 30... Bd5
{[%clk 0:02:45.9]} 31. g4 {[%clk 0:00:12.7]} 31... Rf8 {[%clk 0:02:45.8]} 32. f5
{[%clk 0:00:10.7]} 32... b5 {[%clk 0:02:40.9]} 33. Kf4 {[%clk 0:00:04.6]} 33...
b4 {[%clk 0:02:39.1]} 34. Rd1 {[%clk 0:00:05.3]} 34... Ba2 {[%clk 0:02:30.7]}
35. Rd6 {[%clk 0:00:03]} 35... b3 {[%clk 0:02:22.7]} 36. Rb6 {[%clk 0:00:04.5]}
36... a5 {[%clk 0:02:19.8]} 37. g5 {[%clk 0:00:03.4]} 37... a4 {[%clk
0:02:17.3]} 38. Nd3 {[%clk 0:00:04.9]} 38... Bb1 {[%clk 0:02:11.9]} 39. Ke3
{[%clk 0:00:02.5]} 39... Rxf5 {[%clk 0:02:07.1]} 40. Rb8+ {[%clk 0:00:03.9]}
40... Kg7 {[%clk 0:02:05.7]} 41. Nf4 {[%clk 0:00:04.9]} 41... Re5+ {[%clk
0:02:02.9]} 42. Kd2 {[%clk 0:00:05.4]} 42... Bc2 {[%clk 0:01:55.5]} 43. Rb6
{[%clk 0:00:05.6]} 43... a3 {[%clk 0:01:51.7]} 44. h4 {[%clk 0:00:03]} 44... a2
{[%clk 0:01:47.5]} 45. Nh5+ {[%clk 0:00:04.9]} 45... Kf7 {[%clk 0:01:45.4]} 46.
Rb7+ {[%clk 0:00:06.8]} 46... Ke6 {[%clk 0:01:41.7]} 47. Ng7+ {[%clk 0:00:08.2]}
47... Kd6 {[%clk 0:01:39.1]} 0-1

[Event "GrandPrix_29.05"]
[Site "Chess.com"]
[Date "2020.05.29"]
[Round "2"]
[White "chessfreak35"]
[Black "Nodar_Lortkipanidze"]
[Result "1-0"]
[WhiteElo "2349"]
[BlackElo "2320"]
[TimeControl "600+2"]
[EndTime "9:55:57 PDT"]
[Termination "chessfreak35 won by checkmate"]

1. e4 {[%clk 0:10:01.9]} 1... e6 {[%clk 0:09:59.7]} 2. d4 {[%clk 0:10:02.5]}
2... d5 {[%clk 0:10:00.8]} 3. Nc3 {[%clk 0:10:04.2]} 3... Nf6 {[%clk 0:10:01.7]}
4. e5 {[%clk 0:10:05.2]} 4... Nfd7 {[%clk 0:10:02.4]} 5. f4 {[%clk 0:10:06.8]}
5... c5 {[%clk 0:10:04]} 6. Nf3 {[%clk 0:10:08.2]} 6... Nc6 {[%clk 0:10:05.3]}
7. Be3 {[%clk 0:10:07.5]} 7... a6 {[%clk 0:10:06.5]} 8. Qd2 {[%clk 0:10:07]}
8... cxd4 {[%clk 0:10:07.8]} 9. Nxd4 {[%clk 0:10:07.8]} 9... Nxd4 {[%clk
0:10:09]} 10. Bxd4 {[%clk 0:10:07.6]} 10... Bc5 {[%clk 0:10:10.5]} 11. a3 {[%clk
0:09:53.8]} 11... O-O {[%clk 0:10:04]} 12. Bxc5 {[%clk 0:09:30.6]} 12... Nxc5
{[%clk 0:10:04.4]} 13. Bd3 {[%clk 0:09:32.3]} 13... Bd7 {[%clk 0:09:32.5]} 14.
O-O {[%clk 0:09:27.7]} 14... Qb6 {[%clk 0:09:22.6]} 15. Kh1 {[%clk 0:09:12.4]}
15... Rac8 {[%clk 0:08:30.1]} 16. b4 {[%clk 0:08:58.6]} 16... Nxd3 {[%clk
0:08:10.4]} 17. cxd3 {[%clk 0:08:59.5]} 17... Rc7 {[%clk 0:07:57.5]} 18. Rac1
{[%clk 0:08:41.7]} 18... Rfc8 {[%clk 0:07:46.2]} 19. Ne2 {[%clk 0:08:41.1]}
19... h5 {[%clk 0:07:15.1]} 20. Rxc7 {[%clk 0:08:31.9]} 20... Rxc7 {[%clk
0:07:16.3]} 21. Rc1 {[%clk 0:08:33.6]} 21... Rxc1+ {[%clk 0:07:17.3]} 22. Nxc1
{[%clk 0:08:34.4]} 22... Ba4 {[%clk 0:06:40.4]} 23. d4 {[%clk 0:07:56.2]} 23...
Qc6 {[%clk 0:06:31]} 24. h3 {[%clk 0:07:45]} 24... Qc4 {[%clk 0:06:28.7]} 25.
Kh2 {[%clk 0:07:46.3]} 25... Qf1 {[%clk 0:06:23.4]} 26. Nd3 {[%clk 0:07:41.9]}
26... Bb5 {[%clk 0:06:23.5]} 27. Nc5 {[%clk 0:07:35.3]} 27... b6 {[%clk
0:06:15.9]} 28. Nb7 {[%clk 0:07:35.4]} 28... Qa1 {[%clk 0:04:45.4]} 29. Qe3
{[%clk 0:06:57.7]} 29... Qb2 {[%clk 0:04:45.1]} 30. Nd6 {[%clk 0:06:54.4]} 30...
Qc2 {[%clk 0:04:04.9]} 31. f5 {[%clk 0:06:32.8]} 31... Bd3 {[%clk 0:03:05.2]}
32. f6 {[%clk 0:04:55.8]} 32... gxf6 {[%clk 0:02:04.2]} 33. exf6 {[%clk
0:04:45.7]} 33... Qc7 {[%clk 0:01:59.7]} 34. Qe5 {[%clk 0:04:25.2]} 34... Bg6
{[%clk 0:01:57.8]} 35. Qf4 {[%clk 0:03:52.1]} 35... Kh7 {[%clk 0:01:54.8]} 36.
Kg3 {[%clk 0:02:59.1]} 36... Qc3+ {[%clk 0:01:50.2]} 37. Kh4 {[%clk 0:03:00.5]}
37... Qxa3 {[%clk 0:01:33.5]} 38. g4 {[%clk 0:01:30.7]} 38... hxg4 {[%clk
0:01:28.6]} 39. hxg4 {[%clk 0:01:31.4]} 39... Qxb4 {[%clk 0:01:24]} 40. Kg5
{[%clk 0:01:32.8]} 40... a5 {[%clk 0:00:46.6]} 41. Qh2+ {[%clk 0:00:58.4]} 41...
Kg8 {[%clk 0:00:47.4]} 42. Nc8 {[%clk 0:00:59.7]} 42... Bh7 {[%clk 0:00:31.6]}
43. Ne7+ {[%clk 0:01:00.2]} 43... Kh8 {[%clk 0:00:32.4]} 44. Qb8+ {[%clk
0:01:01.4]} 44... Bg8 {[%clk 0:00:28.7]} 45. Qxg8# {[%clk 0:01:02.1]} 1-0

[Event "GrandPrix_29.05"]
[Site "Chess.com"]
[Date "2020.05.29"]
[Round "2"]
[White "haddinibilbaoo"]
[Black "v-kazakouski"]
[Result "0-1"]
[WhiteElo "2138"]
[BlackElo "2587"]
[TimeControl "600+2"]
[EndTime "9:55:59 PDT"]
[Termination "v-kazakouski won by resignation"]

1. d4 {[%clk 0:10:01.1]} 1... Nf6 {[%clk 0:09:59.2]} 2. Nf3 {[%clk 0:10:02.3]}
2... e6 {[%clk 0:09:59.1]} 3. Bf4 {[%clk 0:10:02.8]} 3... b6 {[%clk 0:09:58.5]}
4. e3 {[%clk 0:10:03.6]} 4... Be7 {[%clk 0:09:58.2]} 5. h3 {[%clk 0:10:01.5]}
5... O-O {[%clk 0:09:58]} 6. Nbd2 {[%clk 0:10:02.3]} 6... c5 {[%clk 0:09:58.1]}
7. c3 {[%clk 0:10:02.9]} 7... d6 {[%clk 0:09:56.5]} 8. Bd3 {[%clk 0:10:00]} 8...
cxd4 {[%clk 0:09:55.9]} 9. exd4 {[%clk 0:10:00.7]} 9... Ba6 {[%clk 0:09:56.6]}
10. Bxa6 {[%clk 0:09:58.9]} 10... Nxa6 {[%clk 0:09:57.2]} 11. O-O {[%clk
0:09:59.6]} 11... h6 {[%clk 0:09:55.3]} 12. Re1 {[%clk 0:09:44.3]} 12... Nc7
{[%clk 0:09:53.6]} 13. c4 {[%clk 0:08:28.9]} 13... Qd7 {[%clk 0:09:13.2]} 14.
Rc1 {[%clk 0:08:21]} 14... Rac8 {[%clk 0:08:27.2]} 15. b4 {[%clk 0:07:35.1]}
15... b5 {[%clk 0:07:27.1]} 16. c5 {[%clk 0:07:34.8]} 16... Ncd5 {[%clk
0:07:24.5]} 17. cxd6 {[%clk 0:04:49.1]} 17... Bxd6 {[%clk 0:06:20.6]} 18. Bxd6
{[%clk 0:04:37.5]} 18... Qxd6 {[%clk 0:06:15.9]} 19. a3 {[%clk 0:04:24.8]} 19...
Nc3 {[%clk 0:05:39.7]} 20. Qc2 {[%clk 0:04:00.4]} 20... Ne2+ {[%clk 0:05:25.2]}
21. Rxe2 {[%clk 0:04:01.6]} 21... Rxc2 {[%clk 0:05:25.6]} 22. Rxc2 {[%clk
0:04:03.5]} 22... a5 {[%clk 0:04:26.4]} 23. Rc5 {[%clk 0:03:56.8]} 23... axb4
{[%clk 0:04:25.4]} 24. axb4 {[%clk 0:03:58.7]} 24... Nd5 {[%clk 0:03:51.6]} 25.
Ne4 {[%clk 0:02:51.6]} 25... Qa6 {[%clk 0:03:42.4]} 26. Re1 {[%clk 0:01:52]}
26... Rb8 {[%clk 0:02:49.1]} 27. Rb1 {[%clk 0:01:36.9]} 27... Qa3 {[%clk
0:02:14.6]} 28. Nd6 {[%clk 0:00:52]} 28... Qd3 {[%clk 0:01:40.5]} 29. Rbc1
{[%clk 0:00:44]} 29... f6 {[%clk 0:01:06.4]} 30. Rc8+ {[%clk 0:00:31.1]} 30...
Rxc8 {[%clk 0:01:03]} 31. Rxc8+ {[%clk 0:00:33]} 31... Kh7 {[%clk 0:00:59.3]}
32. Rc5 {[%clk 0:00:21.5]} 32... Nxb4 {[%clk 0:00:48.7]} 33. Nxb5 {[%clk
0:00:22.5]} 33... Na6 {[%clk 0:00:42.7]} 34. Rh5 {[%clk 0:00:07.1]} 34... g6
{[%clk 0:00:34.5]} 0-1